[Event "Teplice Open 2019"]
[Site "Teplice"]
[Date "2019.06.22"]
[Round "8.37"]
[White "Ivanov, Igor"]
[Black "Eden, James"]
[Result "1/2-1/2"]
[ECO "A11"]
[WhiteElo "2157"]
[BlackElo "2346"]
[Annotator "ChessBase"]
[PlyCount "122"]
[EventDate "2019.06.15"]
[EventType "swiss"]
[EventCountry "CZE"]
[SourceTitle "playchess.com"]
[Source "ChessBase"]
[SourceQuality "1"]
[TimeControl "40/5400+30:1800+30"]

1. c4 {[%emt 0:07:07]} c6 {[%emt 0:04:39]} 2. b3 {[%emt 0:00:00]} d5 {[%emt 0:01:24]} 3. Bb2 {[%emt 0:00:00]} Bg4 {[%emt 0:02:50]} 4. h3 {[%emt 0:00:00]} Bh5 {[%emt 0:00:23]} 5. d3 {[%emt 0:00:00]} e6 {[%emt 0:03:18]} 6. Nd2 {[%emt 0:00:00]} Nf6 {[%emt 0:03:36]} 7. Ngf3 {[%emt 0:00:00]} Bxf3 {[%emt 0:02:53]} 8. Nxf3 {[%emt 0:01:32]} dxc4 {[%emt 0:03:38]} 9. bxc4 {[%emt 0:01:10]} Bb4+ {[%emt 0:00:58]} 10. Nd2 {[%emt 0:00:20]} Qa5 {[%emt 0:03:03]} 11. Qc2 {[%emt 0:16:05]} Ba3 {[%emt 0:06:09]} 12. Bc3 {[%emt 0:01:24]} Bb4 {[%emt 0:00:52]} 13. Bb2 {[%emt 0:07:04]} Nbd7 {[%emt 0:02:54]} 14. a3 {[%emt 0:05:30]} Bd6 {[%emt 0:00:59]} 15. g3 {[%emt 0:02:36]} c5 {[%emt 0:11:26]} 16. Bg2 {[%emt 0:07:09]} Rb8 {[%emt 0:05:21]} 17. Bc3 {[%emt 0:01:40]} Qc7 {[%emt 0:01:31]} 18. Qa4 {[%emt 0:06:06]} Be5 {[%emt 0:06:28]} 19. Bxe5 {[%emt 0:02:20]} Qxe5 {[%emt 0:00:07]} 20. Rb1 {[%emt 0:00:21]} O-O {[%emt 0:07:04]} 21. Kf1 {[%emt 0:01:45]} h5 {[%emt 0:09:48]} 22. Bxb7 {[%emt 0:15:19]} h4 {[%emt 0:04:20]} 23. g4 {[%emt 0:03:02]} Qf4 {[%emt 0:07:51]} 24. Qc2 {[%emt 0:04:10]} Qc7 {[%emt 0:02:43]} 25. Bf3 {[%emt 0:00:00]} Rxb1+ 26. Nxb1 {[%emt 0:01:34]} Ne5 {[%emt 0:00:41]} 27. Nd2 {[%emt 0:01:00]} Nh7 {[%emt 0:08:15]} 28. Kg2 {[%emt 0:05:30]} f5 {[%emt 0:00:00]} 29. gxf5 {[%emt 0:01:03]} Rxf5 {[%emt 0:00:00]} 30. Be4 {[%emt 0:00:45]} Rg5+ {[%emt 0:00:00]} 31. Kf1 {[%emt 0:00:03]} Nf6 {[%emt 0:00:00]} 32. Qa4 {[%emt 0:02:45]} Qb6 {[%emt 0:00:00]} 33. f4 {[%emt 0:02:44]} Nxe4 {[%emt 0:01:57]} 34. dxe4 {[%emt 0:00:04]} Qb2 {[%emt 0:01:11]} 35. Qd1 {[%emt 0:01:56]} Rg3 {[%emt 0:00:11]} 36. fxe5 {[%emt 0:00:59]} Rxa3 {[%emt 0:00:13]} 37. Kg2 {[%emt 0:02:09]} Rg3+ {[%emt 0:00:14]} 38. Kf2 {[%emt 0:01:19]} Qd4+ {[%emt 0:00:17]} 39. Kf1 {[%emt 0:00:30]} Ra3 {[%emt 0:00:13]} 40. Kg2 {[%emt 0:01:43]} Rg3+ {[%emt 0:01:01]} 41. Kf1 {[%emt 0:01:01]} Ra3 {[%emt 0:07:19]} 42. Kg2 {[%emt 0:17:11]} Rg3+ {[%emt 0:03:25]} 43. Kf1 {[%emt 0:00:05]} a5 {[%emt 0:01:13]} 44. Qe1 {[%emt 0:05:25]} a4 {[%emt 0:08:01]} 45. Nf3 {[%emt 0:02:24]} Qe3 {[%emt 0:01:48]} 46. Qa5 {[%emt 0:02:39]} Kh7 {[%emt 0:07:07]} 47. Qd8 {[%emt 0:02:07]} Rxf3+ {[%emt 0:02:26]} 48. exf3 {[%emt 0:00:05]} Qxf3+ {[%emt 0:00:08]} 49. Kg1 {[%emt 0:00:18]} Qg3+ {[%emt 0:00:06]} 50. Kf1 {[%emt 0:00:03]} a3 {[%emt 0:01:05]} 51. Qd2 {[%emt 0:00:44]} Qf3+ {[%emt 0:00:11]} 52. Kg1 {[%emt 0:00:08]} Qg3+ {[%emt 0:00:06]} 53. Qg2 {[%emt 0:00:47]} a2 {[%emt 0:03:14]} 54. Qxg3 {[%emt 0:00:59]} a1=Q+ {[%emt 0:00:10]} 55. Kg2 {[%emt 0:00:18]} Qxh1+ {[%emt 0:00:22]} 56. Kxh1 {[%emt 0:00:03]} hxg3 {[%emt 0:00:13]} 57. Kg2 {[%emt 0:00:55]} Kg6 {[%emt 0:01:28]} 58. Kxg3 {[%emt 0:01:52]} Kh5 {[%emt 0:00:32]} 59. h4 {[%emt 0:00:28]} g5 {[%emt 0:00:36]} 60. hxg5 {[%emt 0:00:09]} Kxg5 {[%emt 0:00:06]} 61. Kf3 {[%emt 0:00:26]} Kh5 {[%emt 0:00:37]} 1/2-1/2

[Event "Teplice Open 2019"]
[Site "Teplice"]
[Date "2019.06.23"]
[Round "9.2"]
[White "Santos Latasa, Jaime"]
[Black "Vorobiov, Evgeny E."]
[Result "0-1"]
[ECO "B30"]
[WhiteElo "2588"]
[BlackElo "2556"]
[Annotator "RC"]
[PlyCount "147"]
[EventDate "2019.06.15"]
[EventType "swiss"]
[EventCountry "CZE"]
[SourceTitle "playchess.com"]
[Source "ChessBase"]
[SourceQuality "1"]
[TimeControl "40/5400+30:1800+30"]

1. e4 {[%emt 0:00:00]} c5 {[%emt 0:00:00]} 2. Nf3 {[%emt 0:00:00]} Nc6 {[%emt 0:00:31]} 3. Bb5 {[%emt 0:00:00]} Nf6 {[%emt 0:01:21]} 4. Nc3 {[%emt 0:00:00]} Qc7 {[%emt 0:00:54]} 5. O-O {[%emt 0:00:08]} Nd4 {[%emt 0:01:02]} 6. Re1 {[%emt 0:00:11]} a6 {[%emt 0:00:34]} 7. Bf1 {[%emt 0:00:06]} Ng4 {[%emt 0:01:20]} 8. g3 {[%emt 0:00:07]} Nxf3+ {[%emt 0:00:26]} 9. Qxf3 {[%emt 0:00:07]} Ne5 {[%emt 0:00:09]} 10. Qe2 {[%emt 0:00:12]} e6 {[%emt 0:00:57]} 11. d3 {[%emt 0:00:17]} Be7 {[%emt 0:03:09]} 12. f4 {[%emt 0:01:26]} Nc6 {[%emt 0:00:51]} 13. Be3 {[%emt 0:00:29]} d6 {[%emt 0:01:51]} 14. Bg2 {[%emt 0:01:46]} O-O {[%emt 0:01:50]} 15. Qf2 {[%emt 0:00:21]} Bd7 {[%emt 0:09:54]} 16. a3 {[%emt 0:05:25]} b5 {[%emt 0:04:27]} 17. Ne2 {[%emt 0:06:30]} a5 {[%emt 0:03:15]} 18. c3 {[%emt 0:01:55]} b4 {[%emt 0:06:03]} 19. d4 {[%emt 0:06:33]} bxc3 {[%emt 0:05:53]} 20. bxc3 {[%emt 0:00:39]} Rab8 {[%emt 0:08:22]} 21. Rab1 {[%emt 0:04:03]} Rxb1 {[%emt 0:06:19]} 22. Rxb1 {[%emt 0:00:27]} Rb8 {[%emt 0:00:02]} 23. Qe1 {[%emt 0:00:12]} a4 {[%emt 0:03:25]} 24. Rxb8+ {[%emt 0:04:24]} Qxb8 {[%emt 0:00:06]} 25. dxc5 {[%emt 0:00:05]} Na5 {[%emt 0:01:45]} 26. Qd1 {[%emt 0:02:40]} Nc4 {[%emt 0:01:24]} 27. Bc1 {[%emt 0:00:07]} Qa7 {[%emt 0:02:22]} 28. Qd4 {[%emt 0:00:27]} d5 {[%emt 0:00:54]} 29. Kh1 {[%emt 0:00:51]} Qxc5 {[%emt 0:07:45]} 30. exd5 {[%emt 0:00:15]} Qxd4 {[%emt 0:00:59]} 31. Nxd4 {[%emt 0:01:58]} Bxa3 {[%emt 0:05:57]} 32. dxe6 {[%emt 0:02:07]} fxe6 {[%emt 0:00:19]} 33. Bxa3 {[%emt 0:03:20]} Nxa3 {[%emt 0:00:06]} 34. Bf1 {[%emt 0:00:07]} Nb1 {[%emt 0:07:15]} 35. Bc4 {[%emt 0:00:25]} Kf8 {[%emt 0:03:01]} 36. Ne2 {[%emt 0:06:25]} Bc6+ {[%emt 0:02:30]} 37. Kg1 {[%emt 0:00:32]} Bd5 {[%emt 0:01:14]} 38. Bd3 {[%emt 0:01:09]} Nd2 {[%emt 0:00:19]} 39. Bxh7 {[%emt 0:01:15]} a3 {[%emt 0:00:36]} 40. Nc1 {[%emt 0:00:11]} a2 {[%emt 0:02:08]} 41. Nxa2 {[%emt 0:30:15]} Bxa2 {[%emt 0:30:06]} 42. Kf2 {[%emt 0:01:52]} Bc4 {[%emt 0:06:59]} 43. Bc2 {[%emt 0:03:25]} Ke7 {[%emt 0:00:46]} 44. h4 {[%emt 0:00:21]} Bd5 {[%emt 0:00:00]} 45. Ke3 {[%emt 0:00:00]} Nc4+ {[%emt 0:00:00]} 46. Kf2 {[%emt 0:00:00]} Nd6 {[%emt 0:00:00]} 47. Ke3 {[%emt 0:00:00]} Nb5 {[%emt 0:00:00]} 48. Kd2 {[%emt 0:00:00]} Bf3 {[%emt 0:00:00]} 49. Bd3 {[%emt 0:00:00]} Nd6 {[%emt 0:00:00]} 50. Ke3 {[%emt 0:00:00]} Bg4 {[%emt 0:00:00]} 51. Bc2 {[%emt 0:00:00]} Nf5+ {[%emt 0:00:00]} 52. Kf2 {[%emt 0:00:00]} Kd6 {[%emt 0:00:00]} 53. Bb3 {[%emt 0:00:00]} Ne7 {[%emt 0:00:00]} 54. Ke3 {[%emt 0:00:00]} Nd5+ {[%emt 0:00:00]} 55. Kd4 {[%emt 0:00:00]} Nf6 {[%emt 0:00:00]} 56. Ke3 {[%emt 0:00:00]} Nh5 {[%emt 0:00:00]} 57. Kf2 {[%emt 0:00:00]} Kc5 {[%emt 0:00:00]} 58. Ba2 {[%emt 0:00:00]} Kc6 {[%emt 0:00:00]} 59. Bc4 {[%emt 0:00:56]} Kb6 {[%emt 0:00:00]} 60. Bd3 {[%emt 0:00:00]} Kc5 {[%emt 0:00:00]} 61. Bf1 {[%emt 0:00:00]} Nf6 {[%emt 0:02:19]} 62. Ke3 {[%emt 0:00:00]} Nd5+ {[%emt 0:00:34]} 63. Kd2 {[%emt 0:00:00]} Ne7 {[%emt 0:00:25]} 64. Ke3 {[%emt 0:00:00]} Nf5+ {[%emt 0:00:06]} 65. Kf2 {[%emt 0:00:00]} Kd5 {[%emt 0:00:09]} 66. Bd3 {[%emt 0:00:00]} Nd6 {[%emt 0:00:28]} 67. Ke3 {[%emt 0:00:00]} Nc4+ {[%emt 0:00:30]} 68. Kf2 {[%emt 0:00:00]} Nb2 {[%emt 0:00:34]} 69. Be2 {[%emt 0:00:00]} Nd1+ {[%emt 0:01:07]} 70. Ke1 {[%emt 0:00:00]} Bxe2 {[%emt 0:00:07]} 71. Kxe2 {[%emt 0:00:00]} Nxc3+ {[%emt 0:00:05]} 72. Kf3 {[%emt 0:00:00]} Ne4 {[%emt 0:05:50]} 73. h5 {[%emt 0:00:24]} Nf6 {[%emt 0:01:16]} 74. g4 {[%emt 0:00:06] Ke5} 0-1

[Event "Teplice Open 2019"]
[Site "Teplice"]
[Date "2019.06.23"]
[Round "9.5"]
[White "Plat, Vojtech"]
[Black "Tari, Aryan"]
[Result "1/2-1/2"]
[ECO "C84"]
[WhiteElo "2547"]
[BlackElo "2623"]
[Annotator "RC"]
[PlyCount "119"]
[EventDate "2019.06.15"]
[EventType "swiss"]
[EventCountry "CZE"]
[SourceTitle "playchess.com"]
[Source "ChessBase"]
[SourceQuality "1"]
[TimeControl "40/5400+30:1800+30"]

1. e4 {[%emt 0:00:09]} e5 {[%emt 0:00:40]} 2. Nf3 {[%emt 0:00:06]} Nc6 {[%emt 0:00:03]} 3. Bb5 {[%emt 0:00:19]} a6 {[%emt 0:00:05]} 4. Ba4 {[%emt 0:00:08]} Nf6 {[%emt 0:00:07]} 5. d4 {[%emt 0:00:12]} exd4 {[%emt 0:00:15]} 6. O-O {[%emt 0:00:07]} Be7 {[%emt 0:00:23]} 7. Re1 {[%emt 0:00:06]} b5 {[%emt 0:00:24]} 8. e5 {[%emt 0:02:24]} Nxe5 {[%emt 0:00:08]} 9. Rxe5 {[%emt 0:01:05]} d6 {[%emt 0:00:07]} 10. Re1 {[%emt 0:00:02]} bxa4 {[%emt 0:00:31]} 11. Qxd4 {[%emt 0:00:02]} O-O {[%emt 0:07:31]} 12. Qxa4 {[%emt 0:04:02]} Bb7 {[%emt 0:06:24]} 13. Nd4 {[%emt 0:03:03]} Re8 {[%emt 0:01:30]} 14. Bg5 {[%emt 0:06:55]} Qc8 {[%emt 0:10:48]} 15. Nb3 {[%emt 0:32:07]} h6 {[%emt 0:18:48]} 16. Bh4 {[%emt 0:01:45]} Rb8 {[%emt 0:12:48]} 17. N1d2 {[%emt 0:04:01]} c5 {[%emt 0:00:55]} 18. Bxf6 {[%emt 0:04:33]} Bxf6 {[%emt 0:03:11]} 19. Rxe8+ {[%emt 0:00:05]} Qxe8 {[%emt 0:00:05]} 20. Qxe8+ {[%emt 0:00:02]} Rxe8 {[%emt 0:00:07]} 21. Nc4 {[%emt 0:00:09]} Bd5 {[%emt 0:06:58]} 22. Nxd6 {[%emt 0:07:01]} Rd8 {[%emt 0:00:41]} 23. Nf5 {[%emt 0:05:47]} Be6 {[%emt 0:03:05]} 24. Ne3 {[%emt 0:01:30]} Bxb2 {[%emt 0:01:04]} 25. Rd1 {[%emt 0:00:35]} Rxd1+ {[%emt 0:04:14]} 26. Nxd1 {[%emt 0:00:48]} Ba3 {[%emt 0:00:17]} 27. Kf1 {[%emt 0:01:57]} Kf8 {[%emt 0:02:17]} 28. Ke2 {[%emt 0:01:06]} Ke7 {[%emt 0:00:46]} 29. Ne3 {[%emt 0:00:11]} Bb4 {[%emt 0:09:51]} 30. Kd3 {[%emt 0:01:43]} Be1 {[%emt 0:00:13]} 31. f4 {[%emt 0:11:19]} Kd6 {[%emt 0:00:17]} 32. f5 {[%emt 0:01:33]} Bd7 {[%emt 0:01:28]} 33. Nc4+ {[%emt 0:00:11]} Ke7 {[%emt 0:01:35]} 34. g4 {[%emt 0:03:12]} Bf2 {[%emt 0:01:10]} 35. Ne5 {[%emt 0:00:54]} Be8 {[%emt 0:02:13]} 36. c4 {[%emt 0:03:32]} f6 {[%emt 0:02:17]} 37. Nf3 {[%emt 0:00:13]} h5 {[%emt 0:00:18]} 38. Ke2 {[%emt 0:02:41]} hxg4 {[%emt 0:00:32]} 39. Kxf2 {[%emt 0:00:03]} gxf3 {[%emt 0:00:06]} 40. Nxc5 {[%emt 0:00:11]} Bf7 {[%emt 0:01:30]} 41. Nxa6 {[%emt 0:30:05]} Bxc4 {[%emt 0:30:14]} 42. Nb4 {[%emt 0:00:03]} Kd6 {[%emt 0:00:00]} 43. Kxf3 {[%emt 0:00:00]} Ke5 {[%emt 0:00:00]} 44. a4 {[%emt 0:00:00]} Kxf5 {[%emt 0:00:00]} 45. a5 {[%emt 0:00:00]} Be6 {[%emt 0:00:00]} 46. Ke3 {[%emt 0:00:00]} Ke5 {[%emt 0:00:00]} 47. a6 {[%emt 0:00:00]} Bc8 {[%emt 0:00:00]} 48. a7 {[%emt 0:00:00]} Bb7 {[%emt 0:00:00]} 49. h4 {[%emt 0:00:00]} g5 {[%emt 0:00:00]} 50. Nd3+ {[%emt 0:00:00]} Kf5 {[%emt 0:00:00]} 51. Nc5 {[%emt 0:00:00]} Ba8 {[%emt 0:00:00]} 52. h5 {[%emt 0:00:00]} g4 {[%emt 0:00:00]} 53. Ne4 {[%emt 0:00:00]} Bc6 {[%emt 0:00:00]} 54. h6 {[%emt 0:00:00]} Kg6 {[%emt 0:00:00]} 55. Kf4 {[%emt 0:00:00]} Kxh6 {[%emt 0:00:00]} 56. Nxf6 {[%emt 0:00:00]} g3 {[%emt 0:00:00]} 57. Ng4+ {[%emt 0:00:00]} Kh5 {[%emt 0:00:00]} 58. Kxg3 {[%emt 0:00:00]} Kg5 {[%emt 0:00:00]} 59. Ne5 {[%emt 0:00:00]} Ba8 {[%emt 0:00:00]} 60. Nd7 {[%emt 0:00:00]} 1/2-1/2

[Event "Teplice Open 2019"]
[Site "Teplice"]
[Date "2019.06.23"]
[Round "9.8"]
[White "Ali Marandi, Cemil Can"]
[Black "Epishin, Vladimir"]
[Result "1-0"]
[ECO "D00"]
[WhiteElo "2520"]
[BlackElo "2564"]
[Annotator "ChessBase"]
[PlyCount "73"]
[EventDate "2019.06.15"]
[EventType "swiss"]
[EventCountry "CZE"]
[SourceTitle "playchess.com"]
[Source "ChessBase"]
[SourceQuality "1"]
[TimeControl "40/5400+30:1800+30"]

1. d4 {[%emt 0:00:56]} d5 {[%emt 0:03:47]} 2. Bf4 {[%emt 0:00:31]} Nd7 {[%emt 0:01:52]} 3. e3 {[%emt 0:02:36]} e6 {[%emt 0:00:27]} 4. Nf3 {[%emt 0:03:00]} Bd6 {[%emt 0:00:25]} 5. Bg3 {[%emt 0:00:22]} Ne7 {[%emt 0:01:44]} 6. Bd3 {[%emt 0:00:43]} O-O {[%emt 0:00:27]} 7. Nbd2 {[%emt 0:03:56]} b6 {[%emt 0:01:48]} 8. e4 {[%emt 0:00:32]} dxe4 {[%emt 0:02:07]} 9. Nxe4 {[%emt 0:01:52]} Nf5 {[%emt 0:00:04]} 10. Qe2 {[%emt 0:05:53]} Bb7 {[%emt 0:03:45]} 11. O-O-O {[%emt 0:00:24]} Re8 {[%emt 0:02:30]} 12. Be5 {[%emt 0:02:53]} f6 {[%emt 0:03:52]} 13. Bxd6 {[%emt 0:19:46]} Nxd6 {[%emt 0:04:09]} 14. h4 {[%emt 0:03:43]} Nf8 {[%emt 0:01:23]} 15. Nc3 {[%emt 0:04:46]} Qd7 {[%emt 0:02:24]} 16. h5 {[%emt 0:07:30]} h6 {[%emt 0:00:49]} 17. Ne5 {[%emt 0:00:59]} Qd8 {[%emt 0:06:50]} 18. Ng6 {[%emt 0:01:56]} f5 {[%emt 0:06:12]} 19. Ne5 {[%emt 0:03:20]} Qg5+ {[%emt 0:01:32]} 20. Kb1 {[%emt 0:00:02]} Rad8 {[%emt 0:00:13]} 21. Rhg1 {[%emt 0:01:24]} Nf7 {[%emt 0:06:01]} 22. Nxf7 {[%emt 0:04:59]} Kxf7 {[%emt 0:00:09]} 23. g4 {[%emt 0:00:14]} Qf4 {[%emt 0:03:47]} 24. Rg3 {[%emt 0:02:07]} Nh7 {[%emt 0:03:17]} 25. Bb5 {[%emt 0:03:47]} c6 {[%emt 0:03:28]} 26. Bc4 {[%emt 0:00:18]} Ng5 {[%emt 0:00:52]} 27. gxf5 {[%emt 0:00:17]} b5 {[%emt 0:02:36]} 28. fxe6+ {[%emt 0:00:56]} Ke7 {[%emt 0:00:04]} 29. Bb3 {[%emt 0:00:49]} Rf8 {[%emt 0:00:28]} 30. Rg4 {[%emt 0:04:03]} Qh2 {[%emt 0:00:21]} 31. Ne4 {[%emt 0:02:29]} Rf5 {[%emt 0:00:02]} 32. Ng3 {[%emt 0:00:39]} Rdf8 {[%emt 0:03:18]} 33. Nxf5+ {[%emt 0:01:53]} Rxf5 {[%emt 0:01:00]} 34. d5 {[%emt 0:01:06]} cxd5 {[%emt 0:00:35]} 35. Qxb5 {[%emt 0:00:16]} Qc7 {[%emt 0:00:02]} 36. Qb4+ {[%emt 0:00:36]} Kxe6 {[%emt 0:00:07]} 37. f4 {[%emt 0:00:12]} 1-0

[Event "Teplice Open 2019"]
[Site "Teplice"]
[Date "2019.06.23"]
[Round "9.9"]
[White "Dastan, Muhammed Batuhan"]
[Black "Siddharth, Jagadeesh"]
[Result "1-0"]
[ECO "D02"]
[WhiteElo "2561"]
[BlackElo "2416"]
[Annotator "ChessBase"]
[PlyCount "46"]
[EventDate "2019.06.15"]
[EventType "swiss"]
[EventCountry "CZE"]
[SourceTitle "playchess.com"]
[Source "ChessBase"]
[SourceQuality "1"]
[TimeControl "40/5400+30:1800+30"]

1. d4 {[%emt 0:00:00]} Nf6 {[%emt 0:00:00]} 2. Nf3 {[%emt 0:00:00]} e6 {[%emt 0:00:00]} 3. Bf4 {[%emt 0:00:00]} c5 {[%emt 0:00:00]} 4. e3 {[%emt 0:00:00]} d5 {[%emt 0:00:05]} 5. c3 {[%emt 0:00:20]} Bd6 {[%emt 0:00:14]} 6. Bg3 {[%emt 0:02:57]} O-O {[%emt 0:00:18]} 7. Nbd2 {[%emt 0:00:15]} b6 {[%emt 0:00:48]} 8. Bd3 {[%emt 0:12:00]} Bb7 {[%emt 0:00:39]} 9. Ne5 {[%emt 0:24:45]} Nc6 {[%emt 0:00:06]} 10. f4 {[%emt 0:01:18]} Ne7 {[%emt 0:00:11]} 11. Qb1 {[%emt 0:00:05]} c4 {[%emt 0:27:23]} 12. Bc2 {[%emt 0:00:52]} g6 {[%emt 0:08:32]} 13. Bf2 {[%emt 0:13:48]} b5 {[%emt 0:01:59]} 14. a3 {[%emt 0:00:22]} a5 {[%emt 0:00:48]} 15. Qd1 {[%emt 0:03:14]} Ne8 {[%emt 0:11:19]} 16. h4 {[%emt 0:12:41]} f6 {[%emt 0:02:23]} 17. h5 {[%emt 0:01:21]} fxe5 {[%emt 0:02:38]} 18. fxe5 {[%emt 0:00:27]} Bc7 {[%emt 0:02:55]} 19. hxg6 {[%emt 0:01:35]} hxg6 {[%emt 0:03:00]} 20. Qg4 {[%emt 0:07:44]} Rxf2 {[%emt 0:02:03]} 21. Kxf2 {[%emt 0:03:44]} Ng7 {[%emt 0:00:23]} 22. Ke2 {[%emt 0:01:19]} Kf7 {[%emt 0:05:12]} 23. Bxg6+ {[%emt 0:02:55]} Kg8 {[%emt 0:02:04]} 1-0

[Event "Teplice Open 2019"]
[Site "Teplice"]
[Date "2019.06.23"]
[Round "9.11"]
[White "Cawdery, Daniel"]
[Black "Babula, Vlastimil"]
[Result "0-1"]
[ECO "B42"]
[WhiteElo "2428"]
[BlackElo "2550"]
[Annotator "RC"]
[PlyCount "74"]
[EventDate "2019.06.15"]
[EventType "swiss"]
[EventCountry "CZE"]
[SourceTitle "playchess.com"]
[Source "ChessBase"]
[SourceQuality "1"]
[TimeControl "40/5400+30:1800+30"]

1. e4 {[%emt 0:00:00]} c5 {[%emt 0:00:00]} 2. Nf3 {[%emt 0:00:00]} e6 {[%emt 0:00:00]} 3. d4 {[%emt 0:00:00]} cxd4 {[%emt 0:00:00]} 4. Nxd4 {[%emt 0:00:00]} a6 {[%emt 0:00:18]} 5. Bd3 {[%emt 0:00:02]} Bc5 {[%emt 0:00:29]} 6. Nb3 {[%emt 0:00:06]} Be7 {[%emt 0:00:10]} 7. Qg4 {[%emt 0:00:36]} g6 {[%emt 0:00:14]} 8. Qe2 {[%emt 0:00:39]} d6 {[%emt 0:00:35]} 9. Nc3 {[%emt 0:04:34]} Nd7 {[%emt 0:00:43]} 10. O-O {[%emt 0:02:17]} Qc7 {[%emt 0:00:22]} 11. f4 {[%emt 0:03:00]} Ngf6 {[%emt 0:03:20]} 12. Bd2 {[%emt 0:00:31]} b5 {[%emt 0:10:16]} 13. a3 {[%emt 0:22:36]} Bb7 {[%emt 0:02:13]} 14. Rae1 {[%emt 0:00:46]} h5 {[%emt 0:14:46]} 15. h3 {[%emt 0:05:53]} h4 {[%emt 0:02:00]} 16. Qf2 {[%emt 0:00:11]} Nc5 {[%emt 0:08:47]} 17. e5 {[%emt 0:15:35]} Nh5 {[%emt 0:16:03]} 18. Nxc5 {[%emt 0:06:33]} dxc5 {[%emt 0:00:32]} 19. Ne4 {[%emt 0:02:35]} O-O-O {[%emt 0:09:09]} 20. Nd6+ {[%emt 0:00:08]} Bxd6 {[%emt 0:01:00]} 21. exd6 {[%emt 0:00:02]} Qxd6 {[%emt 0:03:05]} 22. Bc3 {[%emt 0:00:19]} Ng3 {[%emt 0:00:47]} 23. Bxh8 {[%emt 0:10:05]} Rxh8 {[%emt 0:02:57]} 24. Re5 {[%emt 0:00:14]} c4 {[%emt 0:02:26]} 25. Qa7 {[%emt 0:09:11]} Rh5 {[%emt 0:03:04]} 26. Rfe1 {[%emt 0:06:18]} cxd3 {[%emt 0:01:03]} 27. cxd3 {[%emt 0:01:06]} Qc6 {[%emt 0:01:25]} 28. Qf2 {[%emt 0:01:10]} Rxe5 {[%emt 0:02:28]} 29. fxe5 {[%emt 0:00:32]} Nf5 {[%emt 0:01:23]} 30. Re2 {[%emt 0:02:10]} Qd5 {[%emt 0:01:27]} 31. Kh2 {[%emt 0:03:21]} Qd4 {[%emt 0:00:41]} 32. Qxd4 {[%emt 0:01:13]} Nxd4 {[%emt 0:00:02]} 33. Rf2 {[%emt 0:00:04]} Nf5 {[%emt 0:00:24]} 34. Rc2+ {[%emt 0:00:01]} Kd7 {[%emt 0:00:50]} 35. Kg1 {[%emt 0:00:33]} Ne3 {[%emt 0:01:07]} 36. Rf2 {[%emt 0:00:51]} Ke7 {[%emt 0:00:30]} 37. d4 {[%emt 0:02:01]} g5 {[%emt 0:01:43]} 0-1

[Event "Teplice Open 2019"]
[Site "Teplice"]
[Date "2019.06.23"]
[Round "9.12"]
[White "Greenfeld, Alon"]
[Black "Pajeken, Jakob Leon"]
[Result "1-0"]
[ECO "D41"]
[WhiteElo "2513"]
[BlackElo "2359"]
[Annotator "ChessBase"]
[PlyCount "77"]
[EventDate "2019.06.15"]
[EventType "swiss"]
[EventCountry "CZE"]
[SourceTitle "playchess.com"]
[Source "ChessBase"]
[SourceQuality "1"]
[TimeControl "40/5400+30:1800+30"]

1. c4 {[%emt 0:00:36]} e6 {[%emt 0:00:00]} 2. Nc3 {[%emt 0:01:34]} d5 {[%emt 0:00:00]} 3. d4 {[%emt 0:00:16]} Nf6 {[%emt 0:00:00]} 4. cxd5 {[%emt 0:01:54]} Nxd5 {[%emt 0:00:05]} 5. e4 {[%emt 0:00:49]} Nxc3 {[%emt 0:00:07]} 6. bxc3 {[%emt 0:00:12]} c5 {[%emt 0:00:11]} 7. Nf3 {[%emt 0:02:44]} cxd4 {[%emt 0:00:19]} 8. cxd4 {[%emt 0:00:05]} Bb4+ {[%emt 0:00:09]} 9. Bd2 {[%emt 0:00:05]} Bxd2+ {[%emt 0:00:05]} 10. Qxd2 {[%emt 0:00:06]} O-O {[%emt 0:00:08]} 11. Bc4 {[%emt 0:01:20]} Nd7 {[%emt 0:00:10]} 12. O-O {[%emt 0:00:18]} b6 {[%emt 0:00:07]} 13. Rad1 {[%emt 0:00:34]} Bb7 {[%emt 0:00:08]} 14. Rfe1 {[%emt 0:00:16]} Rc8 {[%emt 0:00:08]} 15. Bb3 {[%emt 0:01:17]} Qf6 {[%emt 0:01:03]} 16. d5 {[%emt 0:04:30]} Nc5 {[%emt 0:00:35]} 17. Nd4 {[%emt 0:00:43]} e5 {[%emt 0:00:23]} 18. Nf5 {[%emt 0:02:05]} Rcd8 {[%emt 0:00:35]} 19. Bc2 {[%emt 0:16:01]} Bc8 {[%emt 0:00:42]} 20. Ne3 {[%emt 0:01:59]} Bd7 {[%emt 0:00:28]} 21. Qb4 {[%emt 0:12:02]} Rc8 {[%emt 0:08:00]} 22. Qa3 {[%emt 0:08:56]} a6 {[%emt 0:04:45]} 23. d6 {[%emt 0:05:39]} Rfd8 {[%emt 0:11:31]} 24. Qb4 {[%emt 0:08:17]} Rc6 {[%emt 0:04:09]} 25. f4 {[%emt 0:06:55]} exf4 {[%emt 0:05:59]} 26. e5 {[%emt 0:06:05]} Qg5 {[%emt 0:07:38]} 27. Nd5 {[%emt 0:00:11]} Ne6 {[%emt 0:00:37]} 28. Ne7+ {[%emt 0:01:21]} Kf8 {[%emt 0:00:56]} 29. Nxc6 {[%emt 0:01:44]} Bxc6 {[%emt 0:00:35]} 30. Be4 {[%emt 0:00:46]} f3 {[%emt 0:10:27]} 31. g3 {[%emt 0:00:23]} Qg4 {[%emt 0:03:27]} 32. d7+ {[%emt 0:00:39]} Nc5 {[%emt 0:00:12]} 33. Qxb6 {[%emt 0:00:34]} f2+ {[%emt 0:01:26]} 34. Kxf2 {[%emt 0:00:13]} Nxe4+ {[%emt 0:00:30]} 35. Rxe4 {[%emt 0:00:38]} Qf5+ {[%emt 0:00:46]} 36. Kg1 {[%emt 0:00:40]} Rxd7 {[%emt 0:02:08]} 37. Rxd7 {[%emt 0:00:39]} Bxd7 {[%emt 0:03:13]} 38. e6 {[%emt 0:02:36]} Qxe4 {[%emt 0:01:44]} 39. Qd6+ {[%emt 0:00:09]} 1-0

[Event "Teplice Open 2019"]
[Site "Teplice"]
[Date "2019.06.23"]
[Round "9.13"]
[White "Kostolansky, Sebastian Lukas"]
[Black "Loiseau, Quentin"]
[Result "1/2-1/2"]
[ECO "B50"]
[WhiteElo "2379"]
[BlackElo "2471"]
[Annotator "RC"]
[PlyCount "34"]
[EventDate "2019.06.15"]
[EventType "swiss"]
[EventCountry "CZE"]
[SourceTitle "playchess.com"]
[Source "ChessBase"]
[SourceQuality "1"]
[TimeControl "40/5400+30:1800+30"]

1. e4 {[%emt 0:00:00]} c5 {[%emt 0:02:50]} 2. Nf3 {[%emt 0:00:00]} d6 {[%emt 0:01:31]} 3. c3 {[%emt 0:00:39]} Nf6 {[%emt 0:00:28]} 4. h3 {[%emt 0:00:21]} Nc6 {[%emt 0:00:43]} 5. Bd3 {[%emt 0:00:25]} d5 6. exd5 {[%emt 0:00:49]} Qxd5 {[%emt 0:01:30]} 7. Qe2 {[%emt 0:00:10]} e6 {[%emt 0:04:19]} 8. O-O {[%emt 0:01:54]} Be7 {[%emt 0:01:01]} 9. Bc4 {[%emt 0:02:16]} Qd6 {[%emt 0:04:02]} 10. d4 {[%emt 0:14:52]} cxd4 {[%emt 0:01:01]} 11. Rd1 {[%emt 0:01:48]} a6 {[%emt 0:03:14]} 12. cxd4 {[%emt 0:09:44]} O-O {[%emt 0:04:05]} 13. Nc3 {[%emt 0:00:28]} b5 {[%emt 0:01:14]} 14. Bd3 {[%emt 0:16:57]} Bb7 {[%emt 0:01:38]} 15. Bg5 {[%emt 0:06:27]} Nb4 {[%emt 0:03:28]} 16. Bxf6 {[%emt 0:18:47]} Qd8 {[%emt 0:20:15]} 17. Be4 {[%emt 0:00:18]} Bxf6 {[%emt 0:01:22]} 1/2-1/2